bitfinex/quotes_ETHUSD_20240713
["timestamp","ask_amount","ask_price","bid_price","bid_amount"]
[1720837206754,1.10590229,3132.8,3132.7,2.4229889]
[1720837207450,2.4996,3133.2,3132.7,2.4229889]
[1720837207653,1.66304681,3132.9,3132.8,0.816]
[1720837207818,1.10580016,3132.9,3132.8,3.05042]
[1720837208019,2.43624422,3132.9,3132.8,3.23878866]
[1720837209622,1.10580016,3132.9,3132.8,3.23878866]
[1720837211040,1.66246357,3133.0,3132.9,2.23432]
[1720837211234,2.76827044,3133.0,3132.9,2.23432]
[1720837211545,2.76821494,3133.0,3132.9,2.42260409]
[1720837213861,2.76798651,3133.0,3132.9,2.42260409]
[1720837214358,2.4996,3133.5,3132.9,2.42260409]
[1720837214560,1.66223316,3133.0,3132.9,2.42260409]
[1720837214741,2.76803014,3133.0,3132.9,3.23860409]
[1720837214943,1.10579698,3133.0,3132.9,3.23860409]
[1720837215159,1.10579698,3133.0,3132.9,5.47295409]
[1720837215359,2.43553066,3133.0,3132.9,5.47295409]
[1720837215658,1.10579698,3133.0,3132.9,6.2499695]
[1720837217740,1.32973368,3133.2,3132.9,6.2499695]
[1720837217741,1.32973368,3133.2,3133.1,4.4684]
[1720837217946,2.43540023,3133.2,3133.1,5.2844]
[1720837218145,2.43540023,3133.2,3133.1,5.47245896]
[1720837218663,1.10566655,3133.2,3133.1,5.47245896]
[1720837218971,1.10566655,3133.2,3133.1,6.0974064]
[1720837219147,2.43540023,3133.2,3133.1,6.0974064]
[1720837219350,1.10566655,3133.2,3133.1,6.0974064]
[1720837221184,1.32973368,3133.3,3133.2,4.46826]
[1720837221380,2.43539674,3133.3,3133.2,4.46826]
[1720837221670,1.32973368,3133.3,3133.2,4.6562344]
[1720837221976,2.43539708,3133.3,3133.2,4.6562344]
[1720837223734,1.32973368,3133.3,3133.2,4.6562344]
[1720837223935,2.43539677,3133.3,3133.2,4.6562344]
[1720837224151,2.43539677,3133.3,3133.2,7.76165258]
[1720837224357,1.10566309,3133.3,3133.2,7.76165258]
[1720837224553,11.6394724,3134.0,3133.4,2.23399]
[1720837224554,1.32973368,3133.6,3133.4,2.23399]
[1720837224788,1.32973368,3133.7,3133.6,2.23385]
[1720837224955,1.32973368,3133.7,3133.6,3.23745439]
[1720837224956,2.43523218,3133.7,3133.6,3.23745439]
[1720837225887,1.1054985,3133.7,3133.6,3.23745439]
[1720837226073,2.43523218,3133.7,3133.6,3.23745439]
[1720837226791,1.1054985,3133.7,3133.6,3.23745439]
[1720837227989,1.32973368,3133.8,3133.7,2.23378]
[1720837228283,2.43494294,3133.8,3133.7,2.42129986]
[1720837231064,1.1055125,3133.8,3133.7,2.42129986]
[1720837231409,1.32972633,3134.1,3134.0,2.23356]
[1720837231563,2.43509212,3134.1,3134.0,3.04956]
[1720837231767,1.32972633,3134.2,3134.1,4.46698]
[1720837232093,2.43506548,3134.2,3134.1,5.47012219]
[1720837232669,1.10533915,3134.2,3134.1,5.47012219]
[1720837234400,1.32972633,3134.4,3134.3,2.23335]
[1720837234570,2.2653,3134.5,3134.3,5.2827]
[1720837234774,2.43416969,3134.4,3134.3,5.2827]
[1720837235800,2.43416969,3134.4,3134.3,5.65601822]
[1720837235989,1.10532538,3134.4,3134.3,5.65601822]
[1720837236204,1.32884431,3134.7,3134.4,2.23326]
[1720837236369,1.10522267,3134.6,3134.5,3.39146782]
[1720837237033,1.32884431,3134.8,3134.6,2.23307]
[1720837237208,1.10517911,3134.7,3134.6,2.23307]
[1720837237395,1.10517911,3134.7,3134.6,3.04907]
[1720837237900,1.32884431,3134.9,3134.6,3.04907]
[1720837238114,1.10518894,3134.7,3134.6,3.04907]
[1720837238418,3.59324587,3135.0,3134.6,3.04907]
[1720837238623,1.1051602,3134.9,3134.6,3.04907]
[1720837238800,1.1051602,3134.8,3134.6,3.04907]
[1720837239002,3.59324587,3135.0,3134.6,3.04907]
[1720837239210,1.10516034,3134.9,3134.6,3.04907]
[1720837239404,3.59324587,3135.0,3134.7,2.23306]
[1720837239405,1.10516034,3134.8,3134.7,2.23306]
[1720837240197,2.2653,3135.0,3134.7,2.23306]
[1720837240432,1.10513276,3134.9,3134.7,2.23306]
[1720837240631,2.2653,3135.0,3134.7,2.23306]
[1720837240933,1.10512399,3134.9,3134.7,2.23306]
[1720837241126,2.2653,3135.0,3134.7,2.23306]
[1720837241531,1.10513599,3134.9,3134.7,2.23306]
[1720837241697,2.2653,3135.0,3134.7,2.23306]
[1720837242034,1.1051549,3134.9,3134.7,2.23306]
[1720837242199,1.1051549,3134.8,3134.7,2.23306]
[1720837242391,1.1051549,3134.9,3134.7,2.23306]
[1720837242597,1.1051549,3134.8,3134.7,2.23306]
[1720837242855,1.1051549,3134.9,3134.7,2.23306]
[1720837242999,1.1051549,3134.8,3134.7,2.23306]
[1720837243199,2.2653,3135.0,3134.7,2.23306]
[1720837243532,1.1051524,3134.9,3134.7,2.23306]
[1720837243715,1.1051524,3134.8,3134.7,2.23306]
[1720837243921,2.2653,3135.0,3134.7,2.23306]
[1720837243922,1.1051524,3134.9,3134.7,2.23306]
[1720837244137,1.10516548,3134.8,3134.6,0.816]
[1720837244313,1.10516678,3134.9,3134.6,0.816]
[1720837244513,2.2873,3134.8,3134.3,2.23331]
[1720837244709,1.10526683,3134.7,3134.3,2.23331]
[1720837244921,1.10526683,3134.6,3134.3,2.23331]
[1720837245127,1.10526683,3134.7,3134.3,2.23331]
[1720837245443,1.10526683,3134.7,3134.4,3.04922]
[1720837246951,1.10526683,3134.7,3134.4,0.816]
[1720837247514,2.2873,3134.6,3134.2,3.0]
[1720837247717,1.10526683,3134.5,3134.4,0.816]
[1720837247963,2.2873,3134.6,3134.4,0.816]
[1720837248166,1.10527243,3134.5,3134.4,0.816]
[1720837251453,1.10531102,3134.5,3134.4,0.816]
[1720837251952,1.10532104,3134.5,3134.4,0.816]
[1720837252148,3.39262104,3134.5,3134.4,0.816]
[1720837253120,3.39262104,3134.5,3134.2,3.0]
[1720837253121,2.2873,3134.5,3134.0,2.23352]
[1720837253320,1.10533202,3134.4,3133.9,0.816]
[1720837253627,2.43327789,3134.4,3133.9,0.816]
[1720837253822,1.10533202,3134.3,3133.9,0.816]
[1720837254024,2.43327789,3134.3,3133.9,0.816]
[1720837254226,2.2873,3134.5,3134.0,0.1847779]
[1720837254436,1.32704097,3134.3,3134.0,0.1847779]
[1720837254636,1.10541948,3134.2,3134.0,0.1847779]
[1720837254947,1.10542041,3134.1,3134.0,0.1847779]
[1720837258177,1.3271475,3134.3,3134.0,0.1847779]
[1720837258476,1.3271475,3134.3,3134.2,0.816]
[1720837258630,1.10538551,3134.3,3134.2,0.816]
[1720837258829,1.10538551,3134.3,3134.2,1.00051321]
[1720837259429,2.43253301,3134.3,3134.2,1.00051321]
[1720837259974,2.43253301,3134.3,3134.2,0.18451321]
[1720837259975,2.7655724,3134.3,3134.2,0.18451321]
[1720837260176,2.7655724,3134.3,3134.0,0.816]
[1720837260476,2.2873,3134.5,3134.0,0.816]
[1720837260477,2.43407448,3134.2,3134.1,0.18459342]
[1720837260861,2.43407448,3134.2,3134.0,0.816]
[1720837261080,1.32876149,3134.2,3134.1,0.18459342]
[1720837261287,2.43414478,3134.2,3134.1,0.18459342]
[1720837261591,1.10542919,3134.2,3134.1,0.18459945]
[1720837261732,2.76638105,3134.2,3134.0,0.816]
[1720837262078,2.43448665,3134.1,3134.0,0.816]
[1720837262437,1.10542919,3134.1,3134.0,0.816]
[1720837264047,1.10543862,3134.1,3134.0,0.816]
[1720837264446,2.76729006,3134.1,3134.0,0.816]
[1720837266382,2.76729006,3134.1,3134.0,3.354522]
[1720837266383,2.43541803,3134.1,3134.0,3.354522]
[1720837267556,2.43540838,3134.1,3134.0,3.354522]
[1720837269281,1.10535579,3134.1,3134.0,3.354522]
[1720837269968,2.43614764,3134.1,3134.0,3.354522]
[1720837270472,1.10535579,3134.1,3134.0,8.035082]
[1720837270905,1.33079185,3134.4,3134.1,2.447]
[1720837271112,1.33124865,3134.4,3134.3,2.23335]
[1720837271248,0.33415917,3134.9,3134.5,2.2332]
[1720837271590,1.99696149,3134.7,3134.5,3.0492]
[1720837271793,1.10523077,3134.6,3134.5,3.0492]
[1720837272589,1.10523077,3134.6,3134.5,3.23345801]
[1720837272742,1.10523077,3134.7,3134.5,3.23345801]
[1720837272939,3.41393077,3134.6,3134.5,0.18425801]
[1720837273137,3.41393077,3134.6,3134.1,2.23346]
[1720837273138,5.41089226,3134.6,3134.1,2.23344]
[1720837273339,3.10219226,3134.5,3134.2,0.816]
[1720837273564,1.10523077,3134.4,3134.2,0.816]
[1720837273746,2.3087,3134.6,3134.3,0.18439171]
[1720837273969,3.10243069,3134.5,3134.2,0.816]
[1720837274328,1.10530468,3134.4,3134.3,0.18439171]
[1720837274671,1.10530468,3134.4,3134.2,0.816]
[1720837274904,1.10530468,3134.3,3134.2,0.816]
[1720837275128,1.10530468,3134.4,3134.2,0.816]
[1720837275430,1.10530468,3134.3,3134.2,0.816]
[1720837275910,1.10530468,3134.3,3134.2,3.04942]
[1720837276130,3.10244665,3134.4,3134.2,3.04942]
[1720837276337,1.10530468,3134.3,3134.2,3.04942]
[1720837276922,1.10530468,3134.4,3134.2,3.04942]
[1720837277089,1.10530468,3134.3,3134.2,3.04942]
[1720837277297,1.10530468,3134.4,3134.2,3.04942]
[1720837277488,2.3087,3134.6,3134.2,3.577706]
[1720837277697,3.10344464,3134.5,3134.4,0.816]
[1720837278079,1.10533138,3134.5,3134.4,0.816]
[1720837280841,2.64285917,3134.9,3134.4,0.816]
[1720837281138,1.9992747,3134.7,3134.4,0.816]
[1720837281309,2.64285917,3134.9,3134.4,0.816]
[1720837281620,1.99925674,3134.7,3134.4,0.816]
[1720837281825,1.10524627,3134.6,3134.4,0.816]
[1720837282027,1.99925674,3134.5,3134.4,0.816]
[1720837282340,5.37470301,3134.5,3134.2,0.816]
[1720837282539,3.10424188,3134.4,3134.2,0.816]
[1720837282722,3.10424188,3134.4,3134.0,0.816]
[1720837282723,1.10524627,3134.3,3134.0,0.816]
[1720837282907,3.10424188,3134.3,3133.7,4.53941]
[1720837283114,1.10524627,3134.2,3134.0,0.816]
[1720837283912,1.10536897,3134.1,3134.0,0.816]
[1720837284153,2.47012567,3134.5,3134.0,0.816]
[1720837284346,1.10538331,3134.1,3134.0,0.816]
[1720837287473,3.68603535,3134.1,3133.8,0.816]
[1720837287634,5.6856652,3134.1,3134.0,0.18464007]
[1720837287960,3.68608827,3134.1,3133.9,0.18472458]
[1720837288166,2.58065204,3134.1,3134.0,0.18464007]
[1720837288462,3.68611648,3134.1,3133.8,0.816]
[1720837288665,1.99938494,3134.0,3133.8,0.816]
[1720837288974,1.10546444,3133.9,3133.8,0.816]
[1720837289539,1.10546444,3133.9,3133.5,0.816]
[1720837289866,4.26965221,3133.7,3133.5,0.816]
[1720837290017,3.10491665,3133.6,3133.5,0.816]
[1720837290219,3.10491665,3133.6,3133.2,2.23407]
[1720837290551,2.2702,3133.7,3133.2,2.23407]
[1720837290552,3.1043787,3133.5,3133.4,0.816]
[1720837290926,1.99892533,3133.5,3133.4,0.816]
[1720837291125,3.10458066,3133.5,3133.4,0.816]
[1720837291537,1.10565343,3133.5,3133.4,0.816]
[1720837293841,1.10566514,3133.5,3133.4,0.816]
[1720837294358,1.10566489,3133.5,3133.4,0.816]
[1720837297679,4.26796508,3133.7,3133.4,0.816]
[1720837297832,1.10566407,3133.6,3133.4,0.816]
[1720837298152,1.99778942,3133.7,3133.4,0.816]
[1720837298153,1.10566407,3133.5,3133.4,0.816]
[1720837298856,2.77052004,3133.5,3133.4,0.816]
[1720837299279,2.77047424,3133.5,3133.4,0.816]
[1720837301259,2.7699729,3133.5,3133.4,0.816]
[1720837301633,2.76985411,3133.5,3133.4,0.816]
[1720837302626,2.76985411,3133.5,3133.4,1.0013116]
[1720837304039,2.2702,3133.9,3133.4,1.0013116]
[1720837304243,1.66419213,3133.5,3133.4,1.0013116]
[1720837304562,2.76975911,3133.5,3133.4,1.0013116]
[1720837307830,2.76920701,3133.5,3133.4,1.0013116]
[1720837308942,1.10567783,3133.5,3133.4,1.0013116]
[1720837309248,2.76946326,3133.5,3133.4,1.0013116]
[1720837309560,1.10567783,3133.5,3133.4,1.0013116]
[1720837310366,2.76937989,3133.5,3133.4,1.0013116]
[1720837311149,1.99623501,3133.8,3133.4,1.0013116]
[1720837311351,1.66363788,3133.5,3133.4,1.0013116]
[1720837311575,2.76934698,3133.5,3133.4,1.0013116]
[1720837311792,2.76927881,3133.5,3133.4,1.0013116]
[1720837313350,2.76913384,3133.5,3133.4,1.0013116]
[1720837313566,1.10571215,3133.5,3133.4,1.0013116]
[1720837313766,2.76913384,3133.5,3133.4,1.0013116]
[1720837314349,1.10567592,3133.5,3133.4,1.0013116]
[1720837314759,4.26619016,3133.9,3133.4,1.0013116]
[1720837314972,1.66332513,3133.6,3133.4,1.0013116]
[1720837315156,2.76899816,3133.5,3133.4,1.0013116]
[1720837315647,2.76899816,3133.5,3133.4,0.1853116]
[1720837315979,2.76899816,3133.5,3133.2,0.816]
[1720837316180,1.33060152,3133.3,3133.2,0.816]
[1720837316369,2.43627455,3133.3,3133.2,0.816]
[1720837317547,2.43627455,3133.3,3133.2,1.00149016]
[1720837318094,1.33060152,3133.3,3133.2,1.00149016]
[1720837318292,2.43631162,3133.3,3133.2,1.00149016]
[1720837320083,2.7691535,3133.3,3133.2,1.00149016]
[1720837320282,2.7691535,3133.3,3133.2,0.18549016]
[1720837320657,2.7691535,3133.3,3133.0,0.816]
[1720837320868,2.43670422,3133.2,3133.1,0.18557471]
[1720837321070,2.43673896,3133.2,3133.1,0.18557471]
[1720837321358,1.10574484,3133.2,3133.1,0.18557471]
[1720837321553,1.99658943,3133.6,3133.1,0.18557471]
[1720837321813,1.33105962,3133.2,3133.1,0.18557471]
[1720837321961,1.10575797,3133.2,3133.1,0.18557471]
[1720837322796,2.76958249,3133.2,3133.1,0.18557471]
[1720837323163,1.10575797,3133.2,3133.1,0.18557471]
[1720837323356,2.76958249,3133.2,3133.1,0.18557471]
[1720837323557,5.39094074,3133.2,3133.1,0.18557471]
[1720837323768,3.72711622,3133.2,3133.1,0.18557471]
[1720837323976,3.727238,3133.2,3132.6,3.305]
[1720837324179,3.727238,3133.2,3133.1,0.18559108]
[1720837324180,2.3444,3133.2,3133.1,0.18559108]
[1720837324379,3.45033934,3133.2,3133.1,0.18559108]
[1720837324598,5.44704897,3133.2,3132.6,0.816]
[1720837324894,1.3311419,3132.8,3132.7,0.18592935]
[1720837325091,2.43708124,3132.8,3132.7,0.18592935]
[1720837325472,1.10593934,3132.8,3132.7,0.18592935]
[1720837325681,2.76986671,3132.8,3132.7,0.18592935]
[1720837327400,2.3444,3133.2,3132.7,0.18592935]
[1720837327604,1.66458457,3132.8,3132.7,0.18592935]
[1720837327770,2.77051386,3132.8,3132.7,0.18592935]
[1720837329392,1.10592929,3132.8,3132.7,0.18592935]
[1720837330306,2.77069813,3132.8,3132.7,0.18592935]
[1720837330477,1.10592929,3132.8,3132.7,0.18592935]
[1720837330683,2.3444,3133.2,3132.7,0.18592935]
[1720837330876,1.99791561,3133.0,3132.7,0.18592935]
[1720837331209,2.57884,3133.2,3132.7,0.18592935]
[1720837331394,1.66484565,3132.8,3132.7,2.67492935]
[1720837331597,2.77074374,3132.8,3132.7,2.67492935]
[1720837331775,2.43801522,3132.8,3132.7,2.67492935]
[1720837331981,1.10589809,3132.8,3132.7,2.67492935]
[1720837332179,1.10589809,3132.8,3132.7,5.48196629]
[1720837332402,2.43801522,3132.8,3132.7,6.29796629]
[1720837332599,1.10589809,3132.8,3132.7,6.29796629]
[1720837333376,2.43801522,3132.8,3132.7,6.29796629]
[1720837333581,2.43788559,3132.8,3132.7,6.29796629]
[1720837333782,1.10576846,3132.8,3132.7,6.29796629]
[1720837334178,1.33211713,3132.9,3132.8,4.72342]
[1720837334389,1.33211713,3133.0,3132.9,2.23435]
[1720837334691,2.43780665,3133.0,3132.9,3.2361834]
[1720837335404,1.10568952,3133.0,3132.9,3.2361834]
[1720837336383,1.10568952,3133.0,3132.9,5.4705334]
[1720837336583,2.43875391,3133.0,3132.9,7.9595334]
[1720837336890,2.43875391,3133.0,3132.9,8.63645316]
[1720837337507,1.10568952,3133.0,3132.9,8.63645316]
[1720837337807,1.33330745,3133.2,3133.1,2.2342]
[1720837338025,2.43891419,3133.2,3133.1,3.0502]
[1720837338217,2.43891419,3133.2,3133.1,4.0891029]
[1720837338375,2.43891419,3133.2,3133.1,6.5781029]
[1720837338579,2.43891419,3133.2,3133.1,8.8123029]
[1720837340818,1.33330745,3133.3,3133.2,2.23413]
[1720837341114,2.43873143,3133.3,3133.2,5.31164301]
[1720837341278,1.33315045,3133.4,3133.2,5.31164301]
[1720837341481,1.33315045,3133.4,3133.3,3.05006]
[1720837341695,1.10556114,3133.4,3133.3,4.09721247]
[1720837344343,1.6659934,3133.5,3133.3,4.09721247]
[1720837344344,1.66590339,3133.5,3133.4,2.23392]
[1720837344521,2.77149681,3133.5,3133.4,4.51022]
[1720837344699,2.77149681,3133.5,3133.4,4.69560164]
[1720837346317,2.77149681,3133.5,3133.4,2.41930164]
[1720837346891,1.10559342,3133.5,3133.4,2.41930164]
[1720837347618,1.10562012,3133.5,3133.4,2.41930164]
[1720837348643,1.10562012,3133.5,3133.4,0.18538164]
[1720837348845,1.41603715,3133.5,3133.4,0.18538164]
[1720837349519,1.41603715,3133.5,3133.4,0.18529641]
[1720837350324,1.41603715,3133.5,3133.2,0.816]
[1720837350527,2.77105543,3133.4,3133.2,0.816]
[1720837350735,1.10562012,3133.3,3133.2,0.816]
[1720837350938,2.4079,3133.6,3133.2,0.816]
[1720837351138,1.6654314,3133.4,3133.2,0.816]
[1720837351308,1.10565267,3133.3,3133.2,0.816]
[1720837351509,1.1056524,3133.3,3133.2,0.816]
[1720837352930,1.10565194,3133.3,3133.2,0.816]
[1720837353447,2.43812175,3133.3,3133.2,0.816]
[1720837353599,1.10565194,3133.3,3133.2,0.816]
[1720837353996,2.4079,3133.6,3133.2,0.816]
[1720837354431,1.66564646,3133.4,3133.2,0.816]
[1720837354618,1.10563754,3133.3,3133.2,0.816]
[1720837357638,2.4079,3133.6,3133.2,0.816]
[1720837357841,1.6655759,3133.4,3133.2,0.816]
[1720837358010,1.10565001,3133.3,3133.2,0.816]
[1720837360828,2.43807988,3133.3,3133.2,0.816]
[1720837361112,1.33242987,3133.3,3132.9,2.2763]
[1720837361310,1.66553115,3133.2,3133.1,0.816]
[1720837361508,2.77117597,3133.2,3133.1,0.816]
[1720837361769,2.77119233,3133.2,3133.1,0.816]
[1720837362771,2.77119233,3133.2,3133.1,1.00157417]
[1720837364278,1.10573231,3133.2,3133.1,1.00157417]
[1720837364571,2.78533725,3133.2,3133.1,0.18557417]
[1720837364711,5.57923578,3133.2,3133.1,0.18557417]
[1720837364909,3.58065426,3133.2,3132.7,0.816]
[1720837365116,1.66530025,3132.8,3132.2,4.67691]
[1720837365318,2.77105451,3132.7,3132.5,0.816]
[1720837365546,1.10575426,3132.6,3132.0,12.08707]
[1720837365722,1.10575426,3132.6,3132.5,0.816]
[1720837365929,1.10575426,3132.7,3132.5,0.816]
[1720837367113,2.77062334,3132.7,3132.5,0.816]
[1720837367313,1.10575426,3132.6,3132.5,0.816]
[1720837367826,2.4749,3133.0,3132.5,0.816]
[1720837368014,1.6647563,3132.7,3132.5,0.816]
[1720837368215,2.43767097,3132.6,3132.5,0.816]
[1720837369353,1.10592274,3132.6,3132.5,0.816]
[1720837369545,1.10592274,3132.6,3132.5,3.05063]
[1720837371239,1.10585168,3132.6,3132.5,3.05063]
[1720837371461,1.10585168,3132.6,3132.5,3.879166]
[1720837371631,1.10584392,3132.6,3132.5,3.879166]
[1720837371830,1.10584392,3132.6,3132.5,6.321266]
[1720837373417,1.33183578,3132.7,3132.6,2.23456]
[1720837373624,1.10584182,3132.7,3132.6,2.23456]
[1720837374237,2.4376776,3132.7,3132.6,2.23456]
[1720837374419,2.4376776,3132.7,3132.6,2.93618239]
[1720837374620,1.33183578,3132.7,3132.6,2.93618239]
[1720837374821,2.43767719,3132.7,3132.6,2.93618239]
[1720837375045,1.10584141,3132.7,3132.6,2.93618239]
[1720837375251,2.43767719,3132.7,3132.6,2.93618239]
[1720837377641,2.43767719,3132.7,3132.6,3.12227329]
[1720837378085,9.8549,3133.4,3132.6,3.12227329]
[1720837378255,1.33242284,3132.7,3132.6,2.4206509]
[1720837378559,2.43825719,3132.7,3132.6,3.2366509]
[1720837380233,2.43825719,3132.7,3132.6,1.0020909]
[1720837380439,1.10583435,3132.7,3132.6,1.0020909]
[1720837381050,2.77131455,3132.7,3132.6,1.0020909]
[1720837381247,1.10590002,3132.7,3132.6,1.0020909]
[1720837381449,2.3951,3133.3,3132.6,1.0020909]
[1720837381646,1.10587561,3132.7,3132.6,1.0020909]
[1720837381848,2.77120024,3132.7,3132.6,1.0020909]
[1720837382062,2.77120024,3132.7,3132.6,0.816]
[1720837382266,2.77120024,3132.7,3132.6,1.0020771]
[1720837382955,1.10587561,3132.7,3132.6,0.1860771]
[1720837383139,1.62250563,3132.7,3132.6,0.1860771]
[1720837383348,1.62250563,3132.7,3132.4,0.816]
[1720837383533,1.6646124,3132.5,3132.4,0.816]
[1720837383739,2.77048801,3132.5,3132.4,0.816]
[1720837383955,1.10602017,3132.5,3132.4,0.816]
[1720837384162,2.3951,3132.8,3132.4,0.816]
[1720837384369,3.1034764,3132.7,3132.4,0.816]
[1720837384670,1.66432437,3132.5,3132.4,0.816]
[1720837384967,2.77034456,3132.5,3132.4,0.816]
[1720837387465,2.76989751,3132.5,3132.4,0.816]
[1720837388543,2.76989751,3132.5,3131.9,6.79036]
[1720837388738,1.33085203,3132.3,3132.2,0.816]
[1720837388938,2.43686783,3132.3,3132.2,0.816]
[1720837389564,2.43686783,3132.3,3132.0,5.23498]
[1720837389769,1.33085203,3132.3,3132.2,0.816]
[1720837389969,2.43690404,3132.3,3132.2,0.816]
[1720837390678,2.43690434,3132.3,3132.2,0.816]
[1720837390975,2.43690433,3132.3,3132.2,0.816]
[1720837391855,1.1060523,3132.3,3132.2,3.741391]
[1720837392579,1.1060523,3132.3,3132.2,3.92777944]
[1720837394079,1.33085203,3132.4,3132.2,6.16262944]
[1720837394259,1.1059961,3132.3,3132.2,6.16262944]
[1720837394781,1.10599598,3132.3,3132.2,6.16262944]
[1720837396182,1.10599598,3132.3,3132.2,3.84232944]
[1720837396477,1.10599598,3132.3,3132.2,3.23723844]
[1720837397258,1.10601265,3132.3,3132.2,3.23723844]
[1720837397458,1.33085203,3132.4,3132.2,3.23723844]
[1720837397671,1.10601424,3132.3,3132.2,3.23723844]
[1720837397866,1.10601424,3132.3,3132.2,5.47208844]
[1720837398069,1.10601424,3132.3,3132.2,8.63959728]
[1720837400077,1.10601424,3132.3,3132.2,6.31929728]
[1720837400866,1.33085203,3132.5,3132.4,2.2347]
[1720837401060,2.43747039,3132.5,3132.4,3.0507]
[1720837401366,2.43747039,3132.5,3132.4,3.23691924]
[1720837402057,1.10594534,3132.5,3132.4,3.23691924]
[1720837403490,2.77035049,3132.5,3132.4,3.23691924]
[1720837403967,1.10594534,3132.5,3132.4,3.23691924]
[1720837404287,2.77104775,3132.5,3132.4,3.23691924]
[1720837404490,2.77103451,3132.5,3132.4,3.23691924]
[1720837404688,2.77103361,3132.5,3132.4,3.23691924]
[1720837407261,1.10593025,3132.5,3132.4,3.23691924]
[1720837407480,2.3951,3133.0,3132.4,3.23691924]
[1720837407682,1.66597523,3132.5,3132.4,3.23691924]
[1720837407957,1.10593227,3132.5,3132.4,3.23691924]
[1720837410991,1.10595629,3132.5,3132.4,3.23691924]
[1720837414286,2.3951,3133.0,3132.4,3.23691924]
[1720837414487,1.1059576,3132.5,3132.4,3.23691924]
[1720837415987,3.10570509,3132.5,3132.4,1.00221924]
[1720837416175,3.4162756,3132.5,3132.4,1.00221924]
[1720837416494,3.10570509,3132.5,3132.4,1.00221924]
[1720837417609,2.3951,3133.0,3132.4,1.00221924]
[1720837417908,2.00014741,3132.5,3132.4,1.00221924]
[1720837418068,2.3951,3133.0,3132.4,1.00221924]
[1720837418270,2.00021452,3132.5,3132.4,1.00221924]
[1720837418584,3.1062065,3132.5,3132.4,3.23691924]
[1720837419213,3.1062065,3132.5,3132.4,0.18621924]
[1720837419684,3.1062065,3132.5,3132.3,0.816]
[1720837419887,2.00021452,3132.5,3132.4,0.18620114]
[1720837420088,3.10621525,3132.5,3132.4,0.18620114]
[1720837420602,2.2724,3132.6,3132.4,0.18620114]
[1720837420771,3.10654918,3132.5,3132.4,0.18620114]
[1720837421128,3.10653875,3132.5,3132.4,0.18620114]
[1720837422177,3.10653875,3132.5,3132.4,2.42090114]
[1720837424618,3.10761933,3132.5,3132.4,4.65560114]
[1720837424924,3.1076405,3132.5,3132.4,4.65560114]
[1720837425200,1.10595748,3132.5,3132.4,4.65560114]
[1720837425771,3.10813767,3132.5,3132.4,4.65560114]
[1720837426495,3.10815833,3132.5,3132.4,4.65560114]
[1720837427999,3.10816115,3132.5,3132.4,2.42090114]
[1720837428200,3.10816115,3132.5,3132.4,7.71604925]
[1720837428400,2.33611719,3132.9,3132.7,2.23445]
[1720837428708,2.00214053,3133.0,3132.8,4.51921]
[1720837428912,1.10574965,3132.9,3132.8,4.70507885]
[1720837429207,1.10574965,3132.9,3132.8,5.52107885]
[1720837429419,1.10574965,3132.9,3132.8,7.75549885]
[1720837429706,1.10574965,3132.9,3132.8,8.53104874]
[1720837430923,2.00214053,3133.1,3133.0,2.23428]
[1720837431228,3.10788448,3133.1,3133.0,3.23597972]
[1720837431611,1.10574395,3133.1,3133.0,3.23597972]
[1720837432824,2.77279202,3133.1,3133.0,4.01149069]
[1720837433001,1.10574395,3133.1,3133.0,4.01149069]
[1720837433531,2.43898258,3133.1,3133.0,4.01149069]
[1720837433734,1.66649475,3133.2,3133.1,2.2342]
[1720837434033,2.77212165,3133.2,3133.1,2.41981516]
[1720837434411,1.1056269,3133.2,3133.1,2.41981516]
[1720837434610,1.10562656,3133.2,3133.1,2.41981516]
[1720837434804,2.7716997,3133.2,3133.1,2.41981516]
[1720837435412,1.10562656,3133.2,3133.1,2.41981516]
[1720837436130,1.10562656,3133.2,3133.1,5.27857477]
[1720837436302,2.43839232,3133.2,3133.1,7.56337477]
[1720837436640,1.10562656,3133.2,3133.1,7.56337477]
[1720837436928,1.33276576,3133.3,3133.2,4.46826]
[1720837437130,2.43836337,3133.3,3133.2,6.12218348]
[1720837437300,2.43836337,3133.3,3133.2,6.30766413]
[1720837437501,1.10559761,3133.3,3133.2,6.30766413]
[1720837438005,1.10559612,3133.3,3133.2,6.30766413]
[1720837438408,1.33219078,3133.4,3133.3,2.23406]
[1720837438737,2.437787,3133.4,3133.3,2.23406]
[1720837438905,2.437787,3133.4,3133.3,2.4194561]
[1720837440914,2.43778603,3133.4,3133.3,5.34575101]
[1720837441244,2.69457655,3134.0,3133.5,2.23392]
[1720837441245,1.33219078,3133.6,3133.5,2.23392]
[1720837441410,2.43773252,3133.6,3133.5,3.04992]
[1720837441610,2.43773252,3133.6,3133.5,3.23509362]
[1720837441811,1.10554174,3133.6,3133.5,1.00117362]
[1720837442026,2.76988038,3133.6,3133.5,0.18517362]
[1720837442224,2.76924711,3133.6,3133.5,0.18517362]
[1720837442609,5.40647182,3133.6,3133.5,0.18517362]
[1720837442938,3.74276645,3133.6,3133.5,0.18517362]
[1720837443247,5.40647796,3133.6,3133.5,0.18517362]
[1720837443408,5.40647796,3133.6,3133.3,2.23405]
[1720837443738,1.33092728,3133.4,3133.3,2.23405]
[1720837443904,2.43657996,3133.4,3133.3,2.23405]
[1720837444109,2.43657996,3133.4,3133.1,2.23415]
[1720837444312,4.79686873,3133.3,3132.9,3.0]
[1720837444610,2.43656873,3133.2,3132.9,3.0503]
[1720837444929,1.10564145,3133.1,3133.0,2.23428]
[1720837445239,1.66363006,3133.4,3133.1,3.05016]
[1720837445240,1.33092728,3133.3,3133.1,3.05016]
[1720837445438,1.10568727,3133.2,3133.1,3.05016]
[1720837445846,2.43661455,3133.2,3133.1,3.05016]
[1720837446217,1.10568727,3133.2,3133.1,3.05016]
[1720837447229,1.33092728,3133.3,3133.1,3.05016]
[1720837447543,1.1056858,3133.2,3133.1,3.05016]
[1720837450614,1.10568205,3133.2,3133.1,3.05016]
[1720837451216,1.10568651,3133.2,3133.1,3.05016]
[1720837452715,1.10568651,3133.2,3133.1,3.23567783]
[1720837453529,1.33092728,3133.3,3133.1,3.23567783]
[1720837453723,2.43661102,3133.2,3133.1,3.23567783]
[1720837453920,1.33092728,3133.2,3133.1,3.23567783]
[1720837454119,2.43663845,3133.2,3133.1,3.23567783]
[1720837455649,1.10571117,3133.2,3133.1,0.18551783]
[1720837455849,1.61868629,3133.2,3133.1,0.18551783]
[1720837456030,1.61868629,3133.2,3132.9,0.816]